[Event "*** Titled Tuesday 3|2 Blitz"]
[Site "Chess.com"]
[Date "2017.06.06"]
[Round "1"]
[White "Aikiigm"]
[Black "Enzy63"]
[Result "1-0"]
[WhiteElo "2431"]
[BlackElo "2041"]
[TimeControl "180+2"]
[EndTime "13:57:24 PDT"]
[Termination "Aikiigm won by resignation"]

1. Nf3 {[%clk 0:03:02]} 1... Nf6 {[%clk 0:02:59.7]} 2. c4 {[%clk 0:03:03.9]}
2... g6 {[%clk 0:02:59.5]} 3. d4 {[%clk 0:03:02.7]} 3... Bg7 {[%clk 0:02:58.5]}
4. Nc3 {[%clk 0:03:04.6]} 4... O-O {[%clk 0:02:58.2]} 5. Bg5 {[%clk 0:03:05.4]}
5... c5 {[%clk 0:02:57.7]} 6. d5 {[%clk 0:03:06.1]} 6... d6 {[%clk 0:02:46.7]}
7. e4 {[%clk 0:03:07]} 7... b5 {[%clk 0:02:46.7]} 8. cxb5 {[%clk 0:03:06.7]}
8... a6 {[%clk 0:02:47.9]} 9. a4 {[%clk 0:03:07.8]} 9... Qa5 {[%clk 0:02:40.1]}
10. Bd2 {[%clk 0:03:08.1]} 10... Nbd7 {[%clk 0:02:10.7]} 11. Be2 {[%clk
0:03:07.4]} 11... axb5 {[%clk 0:02:05.7]} 12. Bxb5 {[%clk 0:03:07.8]} 12... Ba6
{[%clk 0:02:06.3]} 13. O-O {[%clk 0:03:04.2]} 13... Rfb8 {[%clk 0:02:04.3]} 14.
h3 {[%clk 0:03:02.8]} 14... Qb6 {[%clk 0:01:58.3]} 15. Qc2 {[%clk 0:02:56.1]}
15... Bxb5 {[%clk 0:01:48.8]} 16. Nxb5 {[%clk 0:02:49.2]} 16... Ne8 {[%clk
0:01:42.3]} 17. Bc3 {[%clk 0:02:49.8]} 17... Nc7 {[%clk 0:01:36.8]} 18. Bxg7
{[%clk 0:02:50.5]} 18... Kxg7 {[%clk 0:01:37.1]} 19. Nxc7 {[%clk 0:02:43.5]}
19... Qxc7 {[%clk 0:01:39]} 20. Qc3+ {[%clk 0:02:45]} 20... Kg8 {[%clk
0:01:31.7]} 21. a5 {[%clk 0:02:42.5]} 21... Ra6 {[%clk 0:01:30.7]} 22. Ra3
{[%clk 0:02:39.6]} 22... Rb4 {[%clk 0:01:27.3]} 23. Rc1 {[%clk 0:02:27.1]} 23...
Qb7 {[%clk 0:01:20.8]} 24. e5 {[%clk 0:02:22.1]} 24... Rxb2 {[%clk 0:01:09.1]}
25. e6 {[%clk 0:02:21.1]} 25... fxe6 {[%clk 0:01:06.8]} 26. dxe6 {[%clk
0:02:22.3]} 26... Nf6 {[%clk 0:01:06.9]} 27. Qd3 {[%clk 0:02:01.6]} 27... Qb5
{[%clk 0:01:01.7]} 28. Qc3 {[%clk 0:01:55.3]} 28... Ne4 {[%clk 0:00:44.1]} 29.
Qe3 {[%clk 0:01:51.1]} 29... Nxf2 {[%clk 0:00:25.8]} 30. Qf4 {[%clk 0:01:44.5]}
30... Ra8 {[%clk 0:00:16.5]} 31. Qf7+ {[%clk 0:01:43.4]} 31... Kh8 {[%clk
0:00:17.4]} 32. Qxe7 {[%clk 0:01:44.4]} 32... Qe2 {[%clk 0:00:15.4]} 33. Qf6+
{[%clk 0:01:43.5]} 33... Kg8 {[%clk 0:00:16.3]} 34. Qf7+ {[%clk 0:01:34]} 34...
Kh8 {[%clk 0:00:17]} 35. Nh4 {[%clk 0:01:27.3]} 35... Nxh3+ {[%clk 0:00:14.2]}
36. Rxh3 {[%clk 0:01:27.3]} 36... Qf2+ {[%clk 0:00:09.2]} 37. Qxf2 {[%clk
0:01:27.6]} 1-0

[Event "*** Titled Tuesday 3|2 Blitz"]
[Site "Chess.com"]
[Date "2017.06.06"]
[Round "1"]
[White "Paul66666"]
[Black "olgerts_indricans"]
[Result "1/2-1/2"]
[WhiteElo "2555"]
[BlackElo "2305"]
[TimeControl "180+2"]
[EndTime "13:57:43 PDT"]
[Termination "Game drawn by agreement"]

1. d4 {[%clk 0:03:02]} 1... Nf6 {[%clk 0:02:59]} 2. Bg5 {[%clk 0:03:02.3]} 2...
d5 {[%clk 0:02:57.8]} 3. e3 {[%clk 0:03:02.7]} 3... c5 {[%clk 0:02:57.8]} 4.
Bxf6 {[%clk 0:03:02.9]} 4... gxf6 {[%clk 0:02:58]} 5. c4 {[%clk 0:03:00.9]} 5...
cxd4 {[%clk 0:02:55.1]} 6. exd4 {[%clk 0:03:02.8]} 6... dxc4 {[%clk 0:02:48.3]}
7. Bxc4 {[%clk 0:03:01.9]} 7... e6 {[%clk 0:02:41.5]} 8. Nf3 {[%clk 0:03:00.9]}
8... Bd6 {[%clk 0:02:34.4]} 9. Nc3 {[%clk 0:02:59.6]} 9... a6 {[%clk 0:02:30.8]}
10. O-O {[%clk 0:02:59]} 10... b5 {[%clk 0:02:30.3]} 11. Bb3 {[%clk 0:02:58.9]}
11... Bb7 {[%clk 0:02:30.6]} 12. d5 {[%clk 0:03:00.2]} 12... e5 {[%clk
0:02:29.5]} 13. Nh4 {[%clk 0:02:59.4]} 13... Nd7 {[%clk 0:02:22.8]} 14. Nf5
{[%clk 0:02:58.8]} 14... Nc5 {[%clk 0:02:20.1]} 15. Qh5 {[%clk 0:02:46.6]} 15...
Qd7 {[%clk 0:02:02.7]} 16. Ng7+ {[%clk 0:02:42.3]} 16... Kd8 {[%clk 0:01:54.4]}
17. Nf5 {[%clk 0:02:34.7]} 17... Kc7 {[%clk 0:01:42.1]} 18. Rac1 {[%clk
0:02:34.5]} 18... Rag8 {[%clk 0:01:38.9]} 19. Ne4 {[%clk 0:02:30.1]} 19... Rg5
{[%clk 0:01:36.1]} 20. Nxg5 {[%clk 0:02:27.2]} 20... Qxf5 {[%clk 0:01:36.4]} 21.
Qxf7+ {[%clk 0:02:26.8]} 21... Kb6 {[%clk 0:01:36.2]} 22. Ne6 {[%clk 0:01:55.8]}
22... Nxb3 {[%clk 0:01:30.6]} 23. Qd7 {[%clk 0:01:39.5]} 23... Nxc1 {[%clk
0:00:56.8]} 24. Qxd6+ {[%clk 0:01:39.9]} 24... Ka7 {[%clk 0:00:57.8]} 25. Rxc1
{[%clk 0:01:41.8]} 25... Rc8 {[%clk 0:00:50.6]} 26. Nc7 {[%clk 0:01:31.9]} 26...
Qf4 {[%clk 0:00:45.6]} 27. Qc5+ {[%clk 0:01:24]} 27... Kb8 {[%clk 0:00:46]} 28.
g3 {[%clk 0:01:25.9]} 28... Qf3 {[%clk 0:00:43.3]} 29. Qb6 {[%clk 0:01:23.2]}
29... Rxc7 {[%clk 0:00:39.9]} 30. Qxc7+ {[%clk 0:01:18.5]} 30... Ka7 {[%clk
0:00:40.5]} 31. Qc5+ {[%clk 0:01:17]} 31... Kb8 {[%clk 0:00:41]} 32. Qd6+ {[%clk
0:00:59.4]} 32... Ka8 {[%clk 0:00:37.9]} 33. Rc5 {[%clk 0:00:54.5]} 33... e4
{[%clk 0:00:28.8]} 34. Qe6 {[%clk 0:00:53.2]} 34... Qd1+ {[%clk 0:00:27.1]} 35.
Kg2 {[%clk 0:00:54.2]} 35... Qf3+ {[%clk 0:00:28.6]} 36. Kh3 {[%clk 0:00:55.5]}
36... Qh5+ {[%clk 0:00:29.5]} 37. Kg2 {[%clk 0:00:56.6]} 37... Qf3+ {[%clk
0:00:30.2]} 1/2-1/2

[Event "*** Titled Tuesday 3|2 Blitz"]
[Site "Chess.com"]
[Date "2017.06.06"]
[Round "1"]
[White "Spartakus1975"]
[Black "ChessNinja48"]
[Result "0-1"]
[WhiteElo "2584"]
[BlackElo "2337"]
[TimeControl "180+2"]
[EndTime "13:57:50 PDT"]
[Termination "ChessNinja48 won by resignation"]

1. e4 {[%clk 0:03:01.2]} 1... e5 {[%clk 0:02:59.8]} 2. Nf3 {[%clk 0:03:01.1]}
2... Nc6 {[%clk 0:03:00.4]} 3. Bb5 {[%clk 0:03:02.2]} 3... a6 {[%clk 0:03:00.3]}
4. Bxc6 {[%clk 0:03:03.2]} 4... dxc6 {[%clk 0:03:01]} 5. O-O {[%clk 0:03:03.2]}
5... f6 {[%clk 0:03:01.2]} 6. d4 {[%clk 0:03:03.5]} 6... exd4 {[%clk 0:03:02.2]}
7. Nxd4 {[%clk 0:03:02.7]} 7... c5 {[%clk 0:02:54.6]} 8. Ne2 {[%clk 0:03:03.5]}
8... Qxd1 {[%clk 0:02:51.8]} 9. Rxd1 {[%clk 0:03:04.2]} 9... Bd7 {[%clk
0:02:51.7]} 10. Nbc3 {[%clk 0:03:04.5]} 10... Ne7 {[%clk 0:02:32.3]} 11. Nf4
{[%clk 0:03:00.1]} 11... O-O-O {[%clk 0:02:31.7]} 12. Nfd5 {[%clk 0:03:00.6]}
12... Nc6 {[%clk 0:02:31.2]} 13. Bf4 {[%clk 0:03:01.4]} 13... Ne5 {[%clk
0:02:25.9]} 14. Bxe5 {[%clk 0:03:02.3]} 14... fxe5 {[%clk 0:02:26.8]} 15. Rd2
{[%clk 0:03:03.5]} 15... b5 {[%clk 0:02:13]} 16. Rad1 {[%clk 0:03:01.8]} 16...
b4 {[%clk 0:01:45.6]} 17. Ne2 {[%clk 0:03:00.9]} 17... Bd6 {[%clk 0:01:42.2]}
18. Nb6+ {[%clk 0:02:58.1]} 18... cxb6 {[%clk 0:01:43.3]} 19. Rxd6 {[%clk
0:02:58.6]} 19... Kc7 {[%clk 0:01:44.8]} 20. f3 {[%clk 0:02:44.8]} 20... Be6
{[%clk 0:01:33.9]} 21. Rxd8 {[%clk 0:02:43.2]} 21... Rxd8 {[%clk 0:01:35.8]} 22.
Rxd8 {[%clk 0:02:44.4]} 22... Kxd8 {[%clk 0:01:37.7]} 23. a3 {[%clk 0:02:45.4]}
23... a5 {[%clk 0:01:30.8]} 24. Kf2 {[%clk 0:02:42.5]} 24... b5 {[%clk
0:01:29.4]} 25. f4 {[%clk 0:02:39.3]} 25... a4 {[%clk 0:01:29.4]} 26. c3 {[%clk
0:02:32.8]} 26... bxa3 {[%clk 0:01:17.3]} 27. bxa3 {[%clk 0:02:33.3]} 27... exf4
{[%clk 0:01:17.9]} 28. Nxf4 {[%clk 0:02:33.1]} 28... Bc4 {[%clk 0:01:19]} 29.
Ke3 {[%clk 0:02:26.3]} 29... b4 {[%clk 0:01:19.8]} 30. cxb4 {[%clk 0:02:27.3]}
30... cxb4 {[%clk 0:01:21.2]} 31. Kd4 {[%clk 0:02:24.6]} 31... bxa3 {[%clk
0:01:20.8]} 32. Kc3 {[%clk 0:02:26.2]} 32... Ke7 {[%clk 0:01:16.3]} 33. g4
{[%clk 0:02:04.1]} 33... g6 {[%clk 0:01:08.3]} 34. g5 {[%clk 0:01:56.6]} 34...
Kd6 {[%clk 0:01:07.8]} 35. Ng2 {[%clk 0:01:54.2]} 35... Ke5 {[%clk 0:01:05]} 36.
Ne3 {[%clk 0:01:54.8]} 36... Be6 {[%clk 0:01:05.1]} 37. Nc2 {[%clk 0:01:51.4]}
37... a2 {[%clk 0:00:51.4]} 38. Kb2 {[%clk 0:01:51]} 38... Kxe4 {[%clk
0:00:49.6]} 39. h4 {[%clk 0:01:51.8]} 39... Bb3 {[%clk 0:00:45.7]} 40. Nb4
{[%clk 0:01:49.2]} 40... Kf4 {[%clk 0:00:45.7]} 41. Nc6 {[%clk 0:01:49]} 41...
Kg4 {[%clk 0:00:44.4]} 0-1

[Event "*** Titled Tuesday 3|2 Blitz"]
[Site "Chess.com"]
[Date "2017.06.06"]
[Round "1"]
[White "lucasmito"]
[Black "temiksmozg"]
[Result "0-1"]
[WhiteElo "2068"]
[BlackElo "2435"]
[TimeControl "180+2"]
[EndTime "13:58:15 PDT"]
[Termination "temiksmozg won on time"]

1. e4 {[%clk 0:03:02]} 1... e6 {[%clk 0:02:58.1]} 2. d4 {[%clk 0:03:02.2]} 2...
d5 {[%clk 0:02:59.4]} 3. Nc3 {[%clk 0:03:02.1]} 3... Bb4 {[%clk 0:02:58.8]} 4.
e5 {[%clk 0:02:59.3]} 4... c5 {[%clk 0:02:58.5]} 5. a3 {[%clk 0:02:59.4]} 5...
Bxc3+ {[%clk 0:02:59.5]} 6. bxc3 {[%clk 0:02:53.2]} 6... Ne7 {[%clk 0:03:01.4]}
7. Qg4 {[%clk 0:02:52.6]} 7... O-O {[%clk 0:03:00.8]} 8. h4 {[%clk 0:02:50.3]}
8... f5 {[%clk 0:02:46.8]} 9. exf6 {[%clk 0:02:46.8]} 9... Rxf6 {[%clk
0:02:46.6]} 10. Nf3 {[%clk 0:02:37.5]} 10... Nbc6 {[%clk 0:02:39.5]} 11. Bg5
{[%clk 0:02:31.2]} 11... Rf7 {[%clk 0:02:38]} 12. Qh5 {[%clk 0:01:51.3]} 12...
Qa5 {[%clk 0:02:02.1]} 13. Bd2 {[%clk 0:01:27.8]} 13... Bd7 {[%clk 0:01:15.5]}
14. Bd3 {[%clk 0:01:15.3]} 14... h6 {[%clk 0:01:05]} 15. Ng5 {[%clk 0:00:11.2]}
15... Rf6 {[%clk 0:00:44.1]} 16. Qg4 {[%clk 0:00:07.7]} 16... cxd4 {[%clk
0:00:29]} 17. cxd4 {[%clk 0:00:07.7]} 17... Qa4 {[%clk 0:00:30.3]} 18. f4 {[%clk
0:00:05.8]} 18... Qxd4 {[%clk 0:00:25.8]} 19. Rd1 {[%clk 0:00:05.5]} 19... Nf5
{[%clk 0:00:20.8]} 20. Bxf5 {[%clk 0:00:05.3]} 20... Rxf5 {[%clk 0:00:21.5]} 21.
Qh3 {[%clk 0:00:04.7]} 21... Raf8 {[%clk 0:00:19.9]} 22. g4 {[%clk 0:00:04.5]}
22... R5f6 {[%clk 0:00:20.2]} 23. Nf3 {[%clk 0:00:03.6]} 23... Qe4+ {[%clk
0:00:21.2]} 24. Kf2 {[%clk 0:00:04.5]} 24... Rxf4 {[%clk 0:00:22.8]} 25. Bxf4
{[%clk 0:00:05]} 25... Rxf4 {[%clk 0:00:24.1]} 26. Rhe1 {[%clk 0:00:06]} 26...
Qxc2+ {[%clk 0:00:25.4]} 27. Kg3 {[%clk 0:00:04.4]} 27... Re4 {[%clk 0:00:25.5]}
28. Rxe4 {[%clk 0:00:04.4]} 28... Qxe4 {[%clk 0:00:27.4]} 29. Re1 {[%clk
0:00:04.9]} 29... Qc2 {[%clk 0:00:25.3]} 30. Qg2 {[%clk 0:00:05.7]} 30... Qc3
{[%clk 0:00:24.9]} 31. Qd2 {[%clk 0:00:05.9]} 31... Qxa3 {[%clk 0:00:25.3]} 32.
Kg2 {[%clk 0:00:02.1]} 32... Qd6 {[%clk 0:00:24.1]} 0-1

[Event "*** Titled Tuesday 3|2 Blitz"]
[Site "Chess.com"]
[Date "2017.06.06"]
[Round "1"]
[White "Rating-Schmating"]
[Black "Illingworth"]
[Result "0-1"]
[WhiteElo "2347"]
[BlackElo "2704"]
[TimeControl "180+2"]
[EndTime "13:58:26 PDT"]
[Termination "Illingworth won by checkmate"]

1. e4 {[%clk 0:03:01.9]} 1... c6 {[%clk 0:03:00.8]} 2. Bc4 {[%clk 0:03:00]} 2...
d5 {[%clk 0:03:02.7]} 3. Bb3 {[%clk 0:03:00.8]} 3... dxe4 {[%clk 0:03:02.5]} 4.
Qh5 {[%clk 0:03:00.4]} 4... g6 {[%clk 0:02:55.3]} 5. Qh4 {[%clk 0:03:00.8]} 5...
Nf6 {[%clk 0:02:52.9]} 6. Nc3 {[%clk 0:03:01.6]} 6... Nbd7 {[%clk 0:02:44]} 7.
Nxe4 {[%clk 0:03:01.2]} 7... Nxe4 {[%clk 0:02:44.6]} 8. Qxe4 {[%clk 0:03:02]}
8... Nc5 {[%clk 0:02:45.3]} 9. Qe3 {[%clk 0:02:57.7]} 9... Nxb3 {[%clk
0:02:45.5]} 10. axb3 {[%clk 0:02:58.8]} 10... Bg7 {[%clk 0:02:45.8]} 11. Nf3
{[%clk 0:02:55.6]} 11... b6 {[%clk 0:02:39.7]} 12. O-O {[%clk 0:02:52.9]} 12...
O-O {[%clk 0:02:40]} 13. d4 {[%clk 0:02:50.8]} 13... Re8 {[%clk 0:02:34]} 14.
Bd2 {[%clk 0:02:45.7]} 14... Bb7 {[%clk 0:02:33.7]} 15. Bc3 {[%clk 0:02:43.8]}
15... Qd5 {[%clk 0:02:30.4]} 16. Rfe1 {[%clk 0:02:43.4]} 16... e6 {[%clk
0:02:30.7]} 17. Ne5 {[%clk 0:02:42.6]} 17... c5 {[%clk 0:02:29.7]} 18. f3 {[%clk
0:02:31.2]} 18... cxd4 {[%clk 0:02:26.5]} 19. Qxd4 {[%clk 0:02:31.7]} 19... Rec8
{[%clk 0:02:19.1]} 20. Qxd5 {[%clk 0:02:27]} 20... Bxd5 {[%clk 0:02:21]} 21.
Rad1 {[%clk 0:02:25.7]} 21... b5 {[%clk 0:02:16.8]} 22. b4 {[%clk 0:02:11.8]}
22... Rab8 {[%clk 0:02:07.8]} 23. Nd7 {[%clk 0:02:11.3]} 23... Rb7 {[%clk
0:01:55]} 24. Nc5 {[%clk 0:02:10.1]} 24... Bxc3 {[%clk 0:01:48.4]} 25. bxc3
{[%clk 0:02:04.3]} 25... Rbc7 {[%clk 0:01:42.2]} 26. Ra1 {[%clk 0:02:04.2]}
26... Kg7 {[%clk 0:01:25.1]} 27. Ra5 {[%clk 0:02:03.5]} 27... Bc4 {[%clk
0:01:17.5]} 28. Rea1 {[%clk 0:02:02.5]} 28... Rd8 {[%clk 0:01:17.6]} 29. Rxa7
{[%clk 0:01:57.5]} 29... Rxa7 {[%clk 0:01:17.4]} 30. Rxa7 {[%clk 0:01:59.4]}
30... Rd1+ {[%clk 0:01:09.6]} 31. Kf2 {[%clk 0:02:00.1]} 31... Rc1 {[%clk
0:01:10.4]} 32. Ne4 {[%clk 0:01:54.8]} 32... Rxc2+ {[%clk 0:01:10.9]} 33. Kg3
{[%clk 0:01:55.4]} 33... Bf1 {[%clk 0:01:04.6]} 34. Nd6 {[%clk 0:01:44.7]} 34...
Rxg2+ {[%clk 0:01:04.1]} 35. Kf4 {[%clk 0:01:45]} 35... g5+ {[%clk 0:01:02.1]}
36. Ke3 {[%clk 0:01:39.6]} 36... e5 {[%clk 0:00:41.9]} 37. Nxf7 {[%clk
0:01:37.7]} 37... Re2+ {[%clk 0:00:41.4]} 38. Kd3 {[%clk 0:01:38.4]} 38... Ra2+
{[%clk 0:00:42.3]} 39. Ke4 {[%clk 0:01:33]} 39... Rxa7 {[%clk 0:00:43.5]} 40.
Nxe5 {[%clk 0:01:34.4]} 40... Re7 {[%clk 0:00:41.9]} 41. Kf5 {[%clk 0:01:34.9]}
41... Bh3+ {[%clk 0:00:42]} 42. Ke4 {[%clk 0:01:35.1]} 42... Kf6 {[%clk
0:00:41.8]} 43. Kd4 {[%clk 0:01:30.5]} 43... Rxe5 {[%clk 0:00:41.9]} 44. c4
{[%clk 0:01:32.4]} 44... bxc4 {[%clk 0:00:42.7]} 45. b5 {[%clk 0:01:32.4]} 45...
Rxb5 {[%clk 0:00:42.5]} 46. Kxc4 {[%clk 0:01:33.9]} 46... Rf5 {[%clk 0:00:42.9]}
47. Kd4 {[%clk 0:01:35.2]} 47... Rxf3 {[%clk 0:00:44.8]} 48. Ke4 {[%clk
0:01:36.5]} 48... Rf4+ {[%clk 0:00:46.4]} 49. Ke3 {[%clk 0:01:37.6]} 49... Kf5
{[%clk 0:00:48.3]} 50. Ke2 {[%clk 0:01:39]} 50... Bg2 {[%clk 0:00:49.1]} 51. Ke1
{[%clk 0:01:40.1]} 51... Kg4 {[%clk 0:00:49.9]} 52. h3+ {[%clk 0:01:39.7]} 52...
Kh4 {[%clk 0:00:51.8]} 53. Ke2 {[%clk 0:01:40.4]} 53... Kxh3 {[%clk 0:00:53.7]}
54. Ke3 {[%clk 0:01:41.4]} 54... Kg3 {[%clk 0:00:55.6]} 55. Ke2 {[%clk
0:01:41.6]} 55... h5 {[%clk 0:00:57.5]} 56. Ke1 {[%clk 0:01:42.9]} 56... h4
{[%clk 0:00:59.4]} 57. Kd2 {[%clk 0:01:44.8]} 57... Re4 {[%clk 0:01:01.3]} 58.
Kc3 {[%clk 0:01:45.8]} 58... Kf3 {[%clk 0:01:03.2]} 59. Kb2 {[%clk 0:01:47.7]}
59... g4 {[%clk 0:01:05.1]} 60. Kc1 {[%clk 0:01:49.6]} 60... Bf1 {[%clk
0:01:07]} 61. Kd2 {[%clk 0:01:51.5]} 61... Be2 {[%clk 0:01:08.5]} 62. Kc3 {[%clk
0:01:52.8]} 62... Rc4+ {[%clk 0:01:08.6]} 63. Kd2 {[%clk 0:01:54.7]} 63... g3
{[%clk 0:01:08]} 64. Ke1 {[%clk 0:01:55.2]} 64... g2 {[%clk 0:01:08]} 65. Kd2
{[%clk 0:01:56.7]} 65... h3 {[%clk 0:01:08.3]} 66. Ke1 {[%clk 0:01:57.6]} 66...
g1=Q+ {[%clk 0:01:09.1]} 67. Kd2 {[%clk 0:01:59.1]} 67... Qc1# {[%clk
0:01:09.5]} 0-1

[Event "*** Titled Tuesday 3|2 Blitz"]
[Site "Chess.com"]
[Date "2017.06.06"]
[Round "1"]
[White "bugbug01052018"]
[Black "3f32"]
[Result "1/2-1/2"]
[WhiteElo "1939"]
[BlackElo "2399"]
[TimeControl "180+2"]
[EndTime "13:58:38 PDT"]
[Termination "Game drawn by agreement"]

1. e4 {[%clk 0:03:01.7]} 1... e5 {[%clk 0:03:00.6]} 2. Nf3 {[%clk 0:03:02.9]}
2... Nc6 {[%clk 0:03:01.5]} 3. Bb5 {[%clk 0:03:04.5]} 3... a6 {[%clk 0:03:01.9]}
4. Ba4 {[%clk 0:03:05.6]} 4... Nf6 {[%clk 0:03:01.1]} 5. O-O {[%clk 0:03:05.4]}
5... Be7 {[%clk 0:02:53.4]} 6. d3 {[%clk 0:03:04]} 6... b5 {[%clk 0:02:53.1]} 7.
Bb3 {[%clk 0:03:04]} 7... d6 {[%clk 0:02:50.9]} 8. c3 {[%clk 0:03:04.7]} 8...
O-O {[%clk 0:02:48.1]} 9. Nbd2 {[%clk 0:03:02.7]} 9... Na5 {[%clk 0:02:43.8]}
10. Bc2 {[%clk 0:03:03]} 10... c5 {[%clk 0:02:43.9]} 11. Re1 {[%clk 0:02:57.9]}
11... Re8 {[%clk 0:02:39.8]} 12. Nf1 {[%clk 0:02:58.6]} 12... Nc6 {[%clk
0:02:33.6]} 13. d4 {[%clk 0:02:55]} 13... cxd4 {[%clk 0:02:33.6]} 14. cxd4
{[%clk 0:02:55.9]} 14... exd4 {[%clk 0:02:31.6]} 15. Nxd4 {[%clk 0:02:56.3]}
15... Nxd4 {[%clk 0:02:21.5]} 16. Qxd4 {[%clk 0:02:56.6]} 16... Bb7 {[%clk
0:02:19.3]} 17. Ng3 {[%clk 0:02:51.1]} 17... Rc8 {[%clk 0:02:18.2]} 18. Qd3
{[%clk 0:02:51]} 18... Nd7 {[%clk 0:02:14.7]} 19. Bf4 {[%clk 0:02:50.9]} 19...
Ne5 {[%clk 0:02:09.7]} 20. Bxe5 {[%clk 0:02:51.3]} 20... dxe5 {[%clk 0:02:10.3]}
21. Rad1 {[%clk 0:02:51.3]} 21... Qxd3 {[%clk 0:02:06.5]} 22. Bxd3 {[%clk
0:02:51]} 22... g6 {[%clk 0:02:03.6]} 23. h3 {[%clk 0:02:51.1]} 23... Red8
{[%clk 0:02:02.6]} 24. Kh2 {[%clk 0:02:48.6]} 24... Bc5 {[%clk 0:02:02.9]} 25.
f3 {[%clk 0:02:47.9]} 25... Bd4 {[%clk 0:02:00.9]} 26. b3 {[%clk 0:02:44.9]}
26... Kf8 {[%clk 0:01:58.8]} 27. Ne2 {[%clk 0:02:38.8]} 27... Bf2 {[%clk
0:01:58]} 28. Rf1 {[%clk 0:02:38]} 28... Be3 {[%clk 0:01:53.8]} 29. Bb1 {[%clk
0:02:36.1]} 29... Ke7 {[%clk 0:01:50.8]} 30. Bd3 {[%clk 0:02:33.1]} 30... Rc7
{[%clk 0:01:44.8]} 31. Bb1 {[%clk 0:02:24.9]} 31... Rxd1 {[%clk 0:01:35.5]} 32.
Rxd1 {[%clk 0:02:24.4]} 32... f6 {[%clk 0:01:33.1]} 33. Rd3 {[%clk 0:02:24.9]}
33... Bb6 {[%clk 0:01:33]} 34. Kg3 {[%clk 0:02:23.3]} 34... a5 {[%clk
0:01:33.9]} 35. a4 {[%clk 0:02:23.3]} 35... Ba6 {[%clk 0:01:34.7]} 36. Nc3
{[%clk 0:02:22]} 36... bxa4 {[%clk 0:01:27]} 37. Nd5+ {[%clk 0:02:21.9]} 37...
Kf7 {[%clk 0:01:19]} 38. Nxc7 {[%clk 0:02:13.3]} 38... Bxd3 {[%clk 0:01:19.1]}
39. Bxd3 {[%clk 0:02:13]} 39... Bxc7 {[%clk 0:00:59.4]} 40. bxa4 {[%clk
0:02:13]} 40... Ke7 {[%clk 0:00:59.8]} 41. Bc4 {[%clk 0:02:12.3]} 41... f5
{[%clk 0:01:00.3]} 42. h4 {[%clk 0:02:09]} 42... Kf6 {[%clk 0:00:59.8]} 43. Kh3
{[%clk 0:02:05.7]} 43... h6 {[%clk 0:00:59.1]} 44. g4 {[%clk 0:02:05.7]} 44...
fxg4+ {[%clk 0:00:59]} 45. Kxg4 {[%clk 0:02:05]} 45... Bb6 {[%clk 0:00:56.2]}
46. Bb5 {[%clk 0:02:05.4]} 46... Be3 {[%clk 0:00:56.9]} 47. Be8 {[%clk
0:02:05.3]} 47... Bf4 {[%clk 0:00:55.6]} 48. Bd7 {[%clk 0:02:06.2]} 48... h5+
{[%clk 0:00:51.7]} 49. Kh3 {[%clk 0:02:05.2]} 49... g5 {[%clk 0:00:51.6]} 50.
hxg5+ {[%clk 0:02:05.6]} 50... Kxg5 {[%clk 0:00:52.8]} 51. Be8 {[%clk
0:02:06.2]} 51... h4 {[%clk 0:00:53.7]} 52. Bd7 {[%clk 0:02:07.2]} 52... Bg3
{[%clk 0:00:55.2]} 53. Bc6 {[%clk 0:02:06.6]} 53... Kf4 {[%clk 0:00:57.1]} 54.
Bd5 {[%clk 0:02:02.6]} 54... Kxf3 {[%clk 0:00:57.7]} 55. Bc6 {[%clk 0:02:03.1]}
55... Ke3 {[%clk 0:00:57.7]} 56. Bd5 {[%clk 0:02:04.1]} 56... Kd4 {[%clk
0:00:58.7]} 57. Bc6 {[%clk 0:02:05.1]} 57... Kc5 {[%clk 0:01:00.1]} 58. Bd5
{[%clk 0:02:05.4]} 58... Be1 {[%clk 0:01:00.2]} 59. Kg4 {[%clk 0:02:04.7]} 59...
Kd4 {[%clk 0:01:00.5]} 60. Kh3 {[%clk 0:02:03.8]} 60... Kd3 {[%clk 0:01:01.6]}
61. Bc6 {[%clk 0:02:04.3]} 61... Kc4 {[%clk 0:01:02]} 62. Bd5+ {[%clk
0:02:05.4]} 62... Kb4 {[%clk 0:01:03.3]} 63. Bc6 {[%clk 0:02:06.4]} 63... Kc5
{[%clk 0:01:03.8]} 64. Bd5 {[%clk 0:02:06.9]} 64... Kd6 {[%clk 0:01:05.2]} 65.
Kg4 {[%clk 0:02:05.4]} 65... Kc5 {[%clk 0:01:07.1]} 66. Kh3 {[%clk 0:02:05.8]}
66... Kb4 {[%clk 0:01:09]} 67. Bc6 {[%clk 0:02:06.6]} 67... Kc3 {[%clk
0:01:10.9]} 68. Bd5 {[%clk 0:02:07.6]} 68... Kd3 {[%clk 0:01:12.8]} 69. Bc6
{[%clk 0:02:08.5]} 69... Ke3 {[%clk 0:01:14.7]} 70. Bd5 {[%clk 0:02:09.5]} 70...
Kd4 {[%clk 0:01:16.5]} 71. Bc6 {[%clk 0:02:10.5]} 71... Kc5 {[%clk 0:01:18.1]}
72. Bd5 {[%clk 0:02:11.4]} 72... Kb4 {[%clk 0:01:20]} 73. Bc6 {[%clk 0:02:12.4]}
73... Bf2 {[%clk 0:01:21.2]} 74. Kg4 {[%clk 0:02:12.6]} 74... Kc5 {[%clk
0:01:23.1]} 75. Bd5 {[%clk 0:02:12.3]} 75... Kb4 {[%clk 0:01:21]} 76. Bc6 {[%clk
0:02:12.8]} 76... h3 {[%clk 0:01:22.9]} 77. Kxh3 {[%clk 0:02:13.3]} 77... Kc5
{[%clk 0:01:24.8]} 78. Bd5 {[%clk 0:02:14]} 78... Bd4 {[%clk 0:01:26]} 79. Kg4
{[%clk 0:02:14.7]} 1/2-1/2